Cogmind - Beta 13 @@@ ROGUE MODE // 2024.07.04 @ 16:16:28 Player: OurFastestFox Result: Destroyed by G-47 Trooper with Particle Gun Performance ------------- Evolutions (3) 1500 Regions Visited (7) 1400 Robots Destroyed (13) 65 Value Destroyed (417) 417 Prototype IDs (2) 40 Alien Tech Used (0) 0 Bonus (200) 200 TOTAL SCORE: 3622 Bonus ------- Pacifist 200 Cogmind --------- Core Integrity 0/700 Matter 300/300 Energy 100/100 System Corruption 8% Temperature Cool (27) Movement Core (50) Location -7/Lower Caves Parts ------- > --- POWER (2) -------- (None) > --- PROPULSION (4) --- (None) > --- UTILITY (4) ------ (None) > --- WEAPON (3) ------- (None) > --- INVENTORY (5) ---- Improved Ion Engine Light Treads Drone Bay (2/2) Medium Laser Peak State ------------ > --- POWER ------------ Heavy Deuterium Engine > --- PROPULSION ------- VTOL Module > --- UTILITY ---------- Targeting Computer Improved Targeting Computer Improved Targeting Computer Reaction Control System > --- WEAPON ----------- Improved Datajack > --- INVENTORY -------- Improved Ion Engine Light Treads Drone Bay Medium Laser Medium Laser [Rating: 19] Favorites ----------- Power Improved Ion Engine Engine Improved Ion Engine Propulsion Aluminum Leg Leg Aluminum Leg Flight Unit VTOL Module Utility Targeting Computer Device Drone Bay Storage Small Storage Unit Processor Targeting Computer Weapon Medium Laser Energy Gun Medium Laser Launcher Grenade Launcher Special Melee Weapon Improved Datajack Build | -11 -10 -10 -9 -9 -8 -7 -7 ------- Run | Yrd Mat Min Mat Sto Mat Fac Low Slots Evolved 6 | . . . 2 . 2 2 . Power 1 | . . . . . . 1 . Propulsion 2 | . . . . . 1 1 . Utility 2 | . . . 1 . 1 . . Weapon 1 | . . . 1 . . . . Parts Attached 27 | 7 3 . 3 6 2 4 2 Power 5 | 2 . . 1 1 . 1 . Engine 5 | 2 . . 1 1 . 1 . Core . | . . . . . . . . Reactor . | . . . . . . . . Propulsion 4 | 2 . . . 1 . 1 . Treads . | . . . . . . . . Leg 2 | 2 . . . . . . . Wheel . | . . . . . . . . Hover . | . . . . . . . . Flight 2 | . . . . 1 . 1 . Utility 9 | 1 2 . . 3 1 1 1 Device 4 | . . . . 1 1 1 1 Storage 1 | 1 . . . . . . . Processor 4 | . 2 . . 2 . . . Hackware . | . . . . . . . . Protection . | . . . . . . . . Artifact . | . . . . . . . . Weapon 9 | 2 1 . 2 1 1 1 1 Energy Gun 6 | 2 . . 2 1 . . 1 Energy Cannon . | . . . . . . . . Ballistic Gun . | . . . . . . . . Ballistic Cannon . | . . . . . . . . Launcher 1 | . 1 . . . . . . Special Weapon . | . . . . . . . . Impact Weapon . | . . . . . . . . Slashing Weapon . | . . . . . . . . Piercing Weapon . | . . . . . . . . Special Melee Weapon 2 | . . . . . 1 1 . Unidentified Prototypes 2 | . . . 1 . . 1 . Parts Lost 13 | . . . 1 5 . . 7 Power 1 | . . . 1 . . . . Propulsion 3 | . . . . 2 . . 1 Utility 5 | . . . . 1 . . 4 Weapon 4 | . . . . 2 . . 2 Highest Loss Streak 5 | . . . 1 3 . . 5 To Critical Strikes . | . . . . . . . . Average Slot Usage (%) 74 | . 93 100 88 89 44 43 39 Engine 7 | . 14 14 11 10 . . . Leg 14 | . 28 28 22 19 . . . Flight 2 | . . . . . 9 6 4 Device 3 | . . . . 5 . 5 4 Processor 21 | . 14 28 22 22 27 23 21 Energy Gun 14 | . 18 14 22 21 . . 2 Launcher 6 | . 9 14 11 8 . . . Special Melee Weapon 1 | . . . . . 8 7 4 Naked Turns 2 | . . . . . . . 2 Heaviest Build 21 | 14 15 10 13 21 1 2 4 Greatest Support 20 | 20 20 20 20 20 4 4 4 Greatest Overweight (x) 3 | 1 . . . 3 . . 1 Average Overweight (x) . | . . . . . . . . Largest Inventory Capacity 8 | 8 8 5 5 5 5 5 5 Average Capacity 5 | 6 6 5 5 5 5 5 5 Most Carried 5 | 4 5 4 5 5 5 5 5 Average Carried 4 | 2 3 4 4 4 4 5 4 Final Capacity 8 | 8 5 5 5 5 5 5 5 Final Carried 5 | 3 4 4 5 5 5 5 4 Class Distribution -------------------- 53% | Mutant 46% | Gunner Dominant Class ---------------- Mutant | -10/Materials Mutant | -10/Mines Gunner | -9/Materials Gunner | -9/Storage Mutant | -8/Materials Mutant | -7/Factory Mutant | -7/Lower Caves Resources | -11 -10 -10 -9 -9 -8 -7 -7 ----------- Run | Yrd Mat Min Mat Sto Mat Fac Low Matter Collected 455 | 211 . . 71 137 36 . . Remotely . | . . . . . . . . Salvage Created 467 | . . . 230 237 . . . Parts 30 | . . . 17 13 . . . Haulers Intercepted . | . . . . . . . . Recyclers Shooed . | . . . . . . . . Parts Field Recycled . | . . . . . . . . Retrieved Matter . | . . . . . . . . Parts Self-Destructed . | . . . . . . . . Prevented . | . . . . . . . . Kills | -11 -10 -10 -9 -9 -8 -7 -7 ------- Run | Yrd Mat Min Mat Sto Mat Fac Low Combat Hostiles Destroyed 12 | . . . 8 4 . . . Guns 6 | . . . 2 4 . . . AOE 6 | . . . 6 . . . . Classes Destroyed 4 | . . . 3 1 . . . Operator 1 | . . . . 1 . . . Swarmer 3 | . . . 3 . . . . Grunt 4 | . . . 3 1 . . . Sentry 5 | . . . 2 3 . . . Best Kill Streak 7 | . . . 7 2 . . . Combat Bots Only 7 | . . . 7 2 . . . Max Kills in Single Turn 2 | . . . 2 1 . . . Gunslinging . | . . . . . . . . Exploded 2 | . . . 2 . . . . Melee . | . . . . . . . . Uniques/NPCs Destroyed . | . . . . . . . . Combat | -11 -10 -10 -9 -9 -8 -7 -7 -------- Run | Yrd Mat Min Mat Sto Mat Fac Low Hostile Shots Fired 207 | . 17 2 28 32 38 . 90 Missed 70 | . 4 . 8 5 18 . 35 Damage Taken 1922 | . 119 16 260 369 317 . 841 Core 1075 | . 15 . 34 38 281 . 707 Absorbed by Shields . | . . . . . . . . Core Remaining (%) 81 | 100 . 94 . 82 48 . . Volleys Fired 26 | . . . 10 16 . . . Largest 3 | . . . 3 2 . . . Hottest 125 | . . . 125 100 . . . Shots Fired 58 | . . . 27 31 . . . Gun 51 | . . . 20 31 . . . Cannon . | . . . . . . . . Launcher 7 | . . . 7 . . . . Special . | . . . . . . . . Kinetic . | . . . . . . . . Thermal 32 | . . . 10 22 . . . Explosive 7 | . . . 7 . . . . Electromagnetic 19 | . . . 10 9 . . . Robot Hit Streak 9 | . . . 7 9 . . . Robot Miss Streak 3 | . . . 3 1 . . . Penetration Max . | . . . . . . . . Secondary Targets 2 | . . . 1 1 . . . Max Gunslinging Chain 1 | . . . 1 1 . . . Shots Hit Robots 52 | . . . 19 28 4 1 . Core Hits 29 | . . . 13 12 . . 4 Critical Kills . | . . . . . . . . Critical Parts Destroyed . | . . . . . . . . Critical Strikes 2 | . . . 1 1 . . . Burn 2 | . . . 1 1 . . . Melee Attacks 6 | . . . . . 5 1 . Impact . | . . . . . . . . Slashing . | . . . . . . . . Piercing . | . . . . . . . . Sneak Attacks . | . . . . . . . . Combat Hostiles . | . . . . . . . . Follow-up Attacks . | . . . . . . . . Damage Inflicted 1006 | . . . 517 436 . . 53 Guns 602 | . . . 208 394 . . . Cannons . | . . . . . . . . Explosions 345 | . . . 309 36 . . . Melee . | . . . . . . . . Ramming 59 | . . . . 6 . . 53 Kinetic . | . . . . . . . . Thermal 415 | . . . 127 288 . . . Explosive 256 | . . . 256 . . . . Electromagnetic 276 | . . . 134 142 . . . Impact . | . . . . . . . . Slashing . | . . . . . . . . Piercing . | . . . . . . . . Highest Corruption 8 | . . . . . . . 8 Average Corruption 6 | . . . . . . . 6 Corruption Purged . | . . . . . . . . Corruption Blocked . | . . . . . . . . Overload Shots . | . . . . . . . . Overflow Damage 11 | . . . 8 3 . . . Projectiles . | . . . . . . . . Explosions 11 | . . . 8 3 . . . Melee . | . . . . . . . . Knockbacks . | . . . . . . . . Impact . | . . . . . . . . Kinetic . | . . . . . . . . Secondary . | . . . . . . . . Self-Inflicted Damage 51 | . . . 25 2 . . 24 Shots 1 | . . . 1 . . . . Rammed 14 | . . . . 3 . . 11 Targets Rammed 14 | . . . . 3 . . 11 Kicked . | . . . . . . . . Crushed . | . . . . . . . . Highest Temperature 229 | . . . 229 215 . . . Average Temperature 100 | . . . 110 93 . . . Received Heat Transfer 501 | . 36 . 72 150 144 . 99 Siege Activations . | . . . . . . . . Robots Corrupted . | . . . . . . . . Combat Hostiles . | . . . . . . . . Parts Fried 1 | . . . . 1 . . . Impact Corruptions . | . . . . . . . . Robots Melted . | . . . . . . . . Combat Hostiles . | . . . . . . . . Parts Melted 3 | . . . . 3 . . . Heat Transferred 1210 | . . . 346 864 . . . Parts Sabotaged . | . . . . . . . . Parts Stolen . | . . . . . . . . Parts Stripped . | . . . . . . . . Power Chain Reactions 2 | . . . 1 1 . . . Alert | -11 -10 -10 -9 -9 -8 -7 -7 ------- Run | Yrd Mat Min Mat Sto Mat Fac Low Peak Influence 277 | . 15 5 277 117 225 122 . Initial 117 | . . 5 1 117 42 102 . Average 51 | . 2 5 64 52 65 108 . Maximum Alert Level 1 | . . . 1 . 1 . . Low Security (%) 98 | 100 100 100 90 100 98 100 . Level 1 1 | . . . 9 . 1 . . Level 2 . | . . . . . . . . Level 3 . | . . . . . . . . Level 4 . | . . . . . . . . Level 5 . | . . . . . . . . High Security . | . . . . . . . . Max Security . | . . . . . . . . Squads Dispatched 7 | . 1 . 1 1 3 1 . Investigation 4 | . 1 . 1 . 2 . . Extermination . | . . . . . . . . Reinforcement 3 | . . . . 1 1 1 . Assault . | . . . . . . . . Garrison . | . . . . . . . . Intercept . | . . . . . . . . Searches Triggered . | . . . . . . . . Construction Impeded . | . . . . . . . . Haulers Reinforced . | . . . . . . . . Active Scanning Responses . | . . . . . . . . Cargo Convoy Interrupts . | . . . . . . . . Stealth | -11 -10 -10 -9 -9 -8 -7 -7 --------- Run | Yrd Mat Min Mat Sto Mat Fac Low Distress Signals 4 | . . . 1 2 1 . . Communications Jammed . | . . . . . . . . Distress Signals . | . . . . . . . . Times Spotted 65 | . 5 2 9 10 25 1 13 Peak Tracking Total 20 | . 5 3 6 4 20 1 10 Tactical Retreats 9 | . . . 1 1 3 . 4 Traps | -11 -10 -10 -9 -9 -8 -7 -7 ------- Run | Yrd Mat Min Mat Sto Mat Fac Low Traps Triggered 3 | . 1 . 1 . . 1 . Indirectly . | . . . . . . . . Trap Hack Attempts . | . . . . . . . . Triggered . | . . . . . . . . Disarmed . | . . . . . . . . Reprogrammed . | . . . . . . . . Reused . | . . . . . . . . Traps Extracted . | . . . . . . . . Installed . | . . . . . . . . Triggered . | . . . . . . . . Machines | -11 -10 -10 -9 -9 -8 -7 -7 ---------- Run | Yrd Mat Min Mat Sto Mat Fac Low Machines Disabled 1 | . . . . 1 . . . Max in Single Turn 1 | . . . . 1 . . . Garrison Access 1 | . . . . . 1 . . Machines Repaired . | . . . . . . . . Machines Dismantled . | . . . . . . . . Machines Sabotaged . | . . . . . . . . Overloaded Fab Kills . | . . . . . . . . Hacking | -11 -10 -10 -9 -9 -8 -7 -7 --------- Run | Yrd Mat Min Mat Sto Mat Fac Low Machines Accessed 15 | . 2 . 1 5 4 2 1 Terminals 13 | . 2 . 1 5 3 2 . Fabricators . | . . . . . . . . Repair Stations . | . . . . . . . . Recycling Units . | . . . . . . . . Scanalyzers . | . . . . . . . . Garrison Access 1 | . . . . . 1 . . Total Hacks 31 | . 3 . 2 11 12 2 1 Successful 16 | . . . 2 8 4 1 1 Failed 15 | . 3 . . 3 8 1 . Catastrophic 3 | . 1 . . . 1 1 . Database Lockouts . | . . . . . . . . Manual . | . . . . . . . . Terminals 28 | . 3 . 2 11 10 2 . Fabricators . | . . . . . . . . Repair Stations . | . . . . . . . . Recycling Units . | . . . . . . . . Scanalyzers . | . . . . . . . . Garrison Access 2 | . . . . . 2 . . Terminal Hacks 15 | . . . 2 8 3 1 1 Record 3 | . . . 1 2 . . . Part Schematic 1 | . . . . 1 . . . Open Door 2 | . . . . 1 . . 1 Open DSF 1 | . . . . . . 1 . Branch Access Points 1 | . . . . 1 . . . Alert Level 3 | . . . 1 1 1 . . Unreport Threat 2 | . . . . 1 1 . . Security Status 1 | . . . . . 1 . . Investigation Status 1 | . . . . 1 . . . Fabricator Hacks . | . . . . . . . . Repair Station Hacks . | . . . . . . . . Recycling Unit Hacks . | . . . . . . . . Scanalyzer . | . . . . . . . . Garrison Access Hacks 1 | . . . . . 1 . . Seal Access 1 | . . . . . 1 . . Unauthorized Hacks . | . . . . . . . . Terminals . | . . . . . . . . Fabricators . | . . . . . . . . Repair Stations . | . . . . . . . . Recycling Units . | . . . . . . . . Scanalyzers . | . . . . . . . . Garrison Access . | . . . . . . . . Data Cores Recovered . | . . . . . . . . Used . | . . . . . . . . Hacking Detections 12 | . 2 . 1 4 4 1 . Full Trace Events 2 | . . . . . 2 . . Feedback Events . | . . . . . . . . Feedback Blocked . | . . . . . . . . Robot Schematics Acquired . | . . . . . . . . Robots Built . | . . . . . . . . Authchips . | . . . . . . . . Time . | . . . . . . . . Total Robot Build Rating . | . . . . . . . . Part Schematics Acquired 1 | . . . . 1 . . . Parts Built . | . . . . . . . . Authchips . | . . . . . . . . Time . | . . . . . . . . Total Part Build Rating . | . . . . . . . . Parts Repaired . | . . . . . . . . Time . | . . . . . . . . Parts Recycled . | . . . . . . . . Recycled Matter . | . . . . . . . . Retrieved Matter . | . . . . . . . . Retrieved Components . | . . . . . . . . Parts Scanalyzed . | . . . . . . . . Part Schematics Acquired . | . . . . . . . . Parts Damaged . | . . . . . . . . Bothacking | -11 -10 -10 -9 -9 -8 -7 -7 ------------ Run | Yrd Mat Min Mat Sto Mat Fac Low Used RIF Installer . | . . . . . . . . Robots Hacked 3 | . . . . . 2 1 . Non-combat 1 | . . . . . . 1 . Combat 2 | . . . . . 2 . . Robot Hacks Applied 4 | . . . . . 3 1 . parse_system 3 | . . . . . 3 . . check_alert 1 | . . . . . . 1 . Relay Couplers Released . | . . . . . . . . Fabnet Peak Effective % . | . . . . . . . . Robots Rewired . | . . . . . . . . Allies Hacked . | . . . . . . . . Hacks Repelled . | . . . . . . . . Allies | -11 -10 -10 -9 -9 -8 -7 -7 -------- Run | Yrd Mat Min Mat Sto Mat Fac Low Total Allies . | . . . . . . . . Largest Group . | . . . . . . . . Highest-Rated Group . | . . . . . . . . Highest-Rated Ally . | . . . . . . . . Total Orders . | . . . . . . . . Ally Attacks . | . . . . . . . . Total Damage . | . . . . . . . . Kills . | . . . . . . . . Allies Corrupted . | . . . . . . . . Allies Melted . | . . . . . . . . Intel | -11 -10 -10 -9 -9 -8 -7 -7 ------- Run | Yrd Mat Min Mat Sto Mat Fac Low Robot Analysis Total . | . . . . . . . . Derelict Logs Recovered 1 | . . . . . . . 1 Drone Launches . | . . . . . . . . Drone Recoveries . | . . . . . . . . Exploration | -11 -10 -10 -9 -9 -8 -7 -7 ------------- Run | Yrd Mat Min Mat Sto Mat Fac Low Turns Passed 1415 | 54 153 15 224 534 123 107 205 Spaces Moved 1770 | 37 122 13 152 341 328 283 494 Core 129 | 12 . . . 1 . 2 114 Treads . | . . . . . . . . Legs 606 | 25 122 13 152 294 . . . Wheels . | . . . . . . . . Hover . | . . . . . . . . Flight 1035 | . . . . 46 328 281 380 Fastest Speed 35 | 50 120 120 120 35 35 35 35 Average Speed 70 | 104 120 120 120 137 35 35 38 Slowest Speed 200 | 120 120 120 120 200 35 50 100 Overloaded Moves . | . . . . . . . . Propulsion Burnouts . | . . . . . . . . Robots Hopped 11 | . . . . 2 9 . . Cave-ins Triggered . | . . . . . . . . Exploration Rate (%) 25 | 3 27 11 17 55 38 9 47 Regions Visited 7 Branch Regions 3 Pre-discovered Areas 1 | . . . . 1 . . . Known Exits Taken . | . . . . . . . . Unknown Exits Taken 7 | 1 1 1 1 1 1 1 . Scrap Searched 1 | . . . . . . . 1 Spaces Dug . | . . . . . . . . Terrain Destroyed 45 | . . . 42 3 . . . Melee . | . . . . . . . . Projectile . | . . . . . . . . AOE 45 | . . . 42 3 . . . Terrain Rammed . | . . . . . . . . Walls Destroyed . | . . . . . . . . Machines Disabled . | . . . . . . . . Actions | -11 -10 -10 -9 -9 -8 -7 -7 --------- Run | Yrd Mat Min Mat Sto Mat Fac Low Total 1860 | 52 128 12 174 371 326 288 509 Wait . | . . . . . . . . Move 1742 | 36 121 12 151 336 310 282 494 Hop 10 | . . . . 2 8 . . Pick Up 21 | 9 3 . 6 2 . . 1 Fast Attach 8 | . . . . 3 1 4 . Attach 16 | 6 2 . 3 2 1 . 2 Detach 4 | . . . 1 2 1 . . Swap 3 | 1 1 . . 1 . . . Drop 10 | . 1 . 3 4 . 1 1 Fire 26 | . . . 10 16 . . . Melee 6 | . . . . . 5 1 . Ram 14 | . . . . 3 . . 11 Kick . | . . . . . . . . Crush . | . . . . . . . . Escape Stasis . | . . . . . . . . Rewire . | . . . . . . . . Trap . | . . . . . . . . Miscellaneous . | . . . . . . . . Route ------- -11/Scrapyard -10/Materials -10/Mines -9/Materials -9/Storage (discovered 2 exits: *Mat / Rec) -8/Materials -7/Factory -7/Lower Caves History --------- Turn | Location | Event 9 | -11/Scrapyard | Discovered new exit (range 15) 55 | -11/Scrapyard | Entered Materials 194 | -10/Materials | Discovered new exit (range 12) 208 | -10/Materials | Entered Mines 217 | -10/Mines | Discovered new exit (range 6) 223 | -10/Mines | Entered Materials 223 | -9/Materials | Evolved 2 slots: Utility x1, Weapon x1 438 | -9/Materials | Discovered new exit (range 9) 447 | -9/Materials | Entered Storage 451 | -9/Storage | Destroyed 7 combat bots 525 | -9/Storage | Build established: Gunner 533 | -9/Storage | Learned location of Armory (-3) 774 | -9/Storage | Identified exit to Recycling 925 | -9/Storage | Lost 3 parts (1n2w) 978 | -9/Storage | Discovered new exit (range 8) 981 | -9/Storage | Entered Materials 981 | -8/Materials | Evolved 2 slots: Propulsion x1, Utility x1 1102 | -8/Materials | Discovered new exit (range 8) 1104 | -8/Materials | Core integrity fell below 50% 1104 | -8/Materials | Entered Factory 1104 | -7/Factory | Evolved 2 slots: Power x1, Propulsion x1 1204 | -7/Factory | Build established: Mutant 1209 | -7/Factory | Discovered new exit (range 5) 1211 | -7/Factory | Entered Lower Caves 1282 | -7/Lower Caves | Attracted the attention of an 0b10 checkpoint 1363 | -7/Lower Caves | Learned Factory interactive machine intel 1389 | -7/Lower Caves | Core integrity fell below 50% 1394 | -7/Lower Caves | Lost 5 parts (1n2u2w) 1411 | -7/Lower Caves | Core integrity fell below 20% 1416 | -7/Lower Caves | Destroyed by G-47 Trooper with Particle Gun Last Messages --------------- Searching scrap... Found Mak. Laser. Found Arc Projector. Found Thermal Generator. Found 26 Matter. Slammed into S-27 Virus. Connecting with WAR.Sys... Current location identified: Lower Caves >>Open Door Sealed Heavy Doors opened. Acquired Stasis Canceller. Dropped Stasis Canceller. Slammed into S-27 Virus. Imp. Targeting Computer destroyed. System corrupted by crushing effect (+3). Slammed into S-27 Virus. Imp. Targeting Computer destroyed. System corrupted by crushing effect (+5). Slammed into S-27 Virus. Critical hit (Burn: +37). Map ----- +----------------------------------------------------+ | | | | | | | | | | | | | | | | | | | | | | | ?????????????????????????????????????????????????? | | ?????????????????????????????????????????????????? | | ?????????????????????????????????????????????????? | | ?????????????????????????????????????????????????? | | ?????????????????????????????????????????????????? | | ?????????????????????????????????????????????????? | | ?????????????????????????????????????????????????? | | ?????????????????????????????????????????????????? | | ?????????????????????????????????????????????????? | | ???????????????????????######????????????????????? | | ??????????????????????## X#????????????????????? | | ??????????????????????#!!# ##????????????????????? | | ??????????????????????#!!# #?????????????????????? | | ??????????????????????####s#?????????????????????? | | ????????????????????????#@####????????????????#### | | ???????????????????????##gs# ###?????????????## | | ??????????????????????## ###########??## | | ?????????????????????## #?## | | ????????????????????## ######### ### | | ????????????????????# #####???????# ## | | ????????????????????# ! [#???????????# | | ????????????????????####%[###?????????# ## | | ??????????????????????## [ #???????### #### | | ??????????????????????# #???????# #### | | ??????????????????????# #???????# | | ??????????????????????# ##???????## | | ?????????????????????## ##?????????## #### | | ?????????????????????# #????????###### ###??? | | ?????????????????????# #???????## #?## #??### | | ?????????????????????## ##??????## #??# ## # | | ??????????????????????# ##?????## ##?# | | ??????????????????????# ##????# ### | | ??????????????????????# #??### | | ??????????????????????## #?## | | ???????????????????????# ### #### ## | | ???????????????????????# ###??# #?# | | ???????????????????????# #####????# #?? | | ??????????????????????## ####?????# #??? | | ??????????????????????# ##???? #??? | +----------------------------------------------------+ Best States ------------- Heat Dissipation 34 Energy Generation 12 Energy Capacity 265 Matter Stores 300 Matter Capacity 300 Sight Range 16 Terrain Scan Density 10 Evasion (%) 71 Targeting Accuracy 17 Item Schematics ----------------- Lgt. Deuterium Engine | -9/Storage | Hacked Robot Schematics ------------------ None Fabricated ------------ Nothing Alien Tech Used ----------------- None Achievements -------------- Deadly Force Challenges ------------ None Game ------ Seed CombatGunThermoblaster Manual? 0 Play Time 00:31:57 Cumulative 7.7 hours Start 2024.07.04 @ 15:34:28 End 2024.07.04 @ 16:16:28 Sessions 1 Manual Loads 0 Difficulty Rogue Special Mode None Game No. 12 Rogue 12 Adventurer 0 Explorer 0 Win Type - Total 0 Types 0/0/0/0/0/0/0/0/0 Lore% 5 Gallery% 13 Achievement% 13 Wizard Run 0 Options --------- Layout 1 ASCII 0 Keyboard 0 Movement Mouse Keybinds 0 Fullscreen 1 Font 48/Smallcaps Map View 50x35 Zoom Use 0% Tactical HUD 0 Map Filters NONE Filters NONE Steam 1 RUN: 7f9d382b-743c-4759-b000-cbe5341b5c14